bitfinex-derivatives/quotes_SOLF0:USTF0_20251201
["timestamp","ask_amount","ask_price","bid_price","bid_amount"]
[1764621896730,0.05205268,124.68,124.66,0.05599288]
[1764621897034,9.4446042,124.68,124.66,0.05599288]
[1764621897235,0.05205268,124.68,124.66,0.05599288]
[1764621897536,6.11240149,124.68,124.66,0.05599288]
[1764621898332,0.05205268,124.68,124.66,0.05599288]
[1764621899936,0.05205268,124.68,124.66,7.27599288]
[1764621900834,0.05205268,124.68,124.66,76.23599288]
[1764621906945,0.05205268,124.68,124.66,7.27599288]
[1764621907146,1.65205268,124.68,124.66,0.05599288]
[1764621907442,6.48809468,124.68,124.59,112.3742]
[1764621907647,4.836042,124.65,124.59,112.3742]
[1764621907839,4.836042,124.65,124.58,181.3192]
[1764621908438,0.06094737,124.63,124.6,0.05121638]
[1764621908643,0.05496877,124.63,124.6,0.05525192]
[1764621909450,0.05496877,124.63,124.61,7.2227]
[1764621910354,0.05496877,124.63,124.6,0.05525192]
[1764621911352,4.836042,124.61,124.54,68.94]
[1764621911654,4.836042,124.63,124.54,68.94]
[1764621912044,4.836042,124.63,124.56,7.2258]
[1764621912242,0.05804421,124.61,124.58,112.3845]
[1764621912446,4.836042,124.67,124.6,112.3661]
[1764621912644,4.836042,124.67,124.62,0.05670981]
[1764621912849,0.06040931,124.65,124.62,0.05670981]
[1764621914054,0.06040931,124.65,124.62,7.27890981]
[1764621915650,0.06040931,124.65,124.62,0.05670981]
[1764621916555,7.2214,124.64,124.58,76.1645]
[1764621916762,13.44840291,124.65,124.58,68.94]
[1764621916959,19.45933452,124.65,124.58,68.94]
[1764621917158,13.44840291,124.65,124.58,68.94]
[1764621917360,19.46070841,124.65,124.58,68.94]
[1764621917759,0.05685027,124.63,124.6,0.05556275]
[1764621917964,84.05685027,124.63,124.6,0.05556275]
[1764621922265,84.05685027,124.63,124.58,7.2246]
[1764621922266,103.47013483,124.62,124.52,112.4327]
[1764621922470,90.02421752,124.61,124.5,205.32454626]
[1764621922670,84.0,124.61,124.5,181.392]
[1764621922870,6.02415301,124.6,124.5,181.392]
[1764621923277,0.05772512,124.56,124.54,0.05395202]
[1764621923480,0.05772512,124.56,124.54,7.28055202]
[1764621927284,119.80921489,124.68,124.57,112.3913]
[1764621927481,9.31876228,124.67,124.57,112.3913]
[1764621927780,6.02641083,124.66,124.57,112.3913]
[1764621928169,0.05250663,124.63,124.6,0.06053385]
[1764621930083,0.05250663,124.63,124.6,7.28373385]
[1764621930379,0.05250663,124.63,124.6,0.06053385]
[1764621931172,0.05250663,124.63,124.6,7.28383385]
[1764621931482,0.05250663,124.63,124.6,0.06053385]
[1764621931676,0.05250663,124.63,124.6,181.38453385]
[1764621931876,6.02641083,124.69,124.62,112.3422]
[1764621932076,6.02641083,124.7,124.61,112.3583]
[1764621932278,9.31876228,124.71,124.61,112.3583]
[1764621932476,16.53556228,124.72,124.63,7.2215]
[1764621932676,9.31876228,124.71,124.63,7.2215]
[1764621932981,0.05603427,124.68,124.66,0.05204686]
[1764621937379,84.0,124.67,124.66,0.05204686]
[1764621937575,84.0,124.67,124.61,7.2229]
[1764621937881,84.0,124.67,124.57,112.3857]
[1764621938075,84.0,124.66,124.6,7.2235]
[1764621938480,0.05270735,124.64,124.62,0.0557046]
[1764621943193,0.05270735,124.64,124.62,7.2781046]
[1764621946987,0.05270735,124.64,124.62,0.0557046]
[1764621949397,0.05270735,124.64,124.62,7.2781046]
[1764621950590,0.05270735,124.64,124.62,0.0557046]
[1764621955100,0.05270735,124.64,124.62,7.2781046]
[1764621956695,7.50821489,124.73,124.66,7.2199]
[1764621956895,9.93659257,124.74,124.66,7.2199]
[1764621956896,9.34897669,124.72,124.66,7.2199]
[1764621957094,9.34897669,124.71,124.66,7.2199]
[1764621957290,3.2823301,124.73,124.66,7.2199]
[1764621957504,9.34685357,124.72,124.66,7.2199]
[1764621957704,0.05679937,124.7,124.68,0.05355623]
[1764621959213,0.05679937,124.7,124.64,7.2208]
[1764621959709,6.06264531,124.69,124.63,7.2216]
[1764621960003,0.052595,124.67,124.65,0.05689751]
[1764621961507,6.11567615,124.67,124.65,0.05689751]
[1764621961802,0.052595,124.67,124.65,0.05689751]
[1764621962708,9.344764,124.72,124.65,112.37159751]
[1764621962902,9.344764,124.74,124.65,112.37159751]
[1764621963210,6.0624339,124.73,124.65,112.3147]
[1764621963603,6.0624339,124.72,124.65,112.3147]
[1764621963800,0.05842164,124.7,124.67,0.05741227]
[1764621964401,0.05842164,124.7,124.68,7.2187]
[1764621968409,0.05842164,124.7,124.67,0.05741227]
[1764621969116,6.12085554,124.7,124.67,0.05741227]
[1764621969412,0.05842164,124.7,124.67,0.05741227]
[1764621969614,84.05842164,124.7,124.67,0.05741227]
[1764621969809,6.06122976,124.69,124.67,0.05741227]
[1764621970005,13.57322238,124.69,124.61,68.94]
[1764621970210,6.06122976,124.68,124.61,68.94]
[1764621970610,13.28042976,124.68,124.61,68.94]
[1764621970811,6.06122976,124.67,124.61,68.94]
[1764621971010,0.05332131,124.65,124.63,0.05663533]
[1764621971319,6.11455107,124.65,124.63,0.05663533]
[1764621971512,0.05332131,124.65,124.63,0.05663533]
[1764621972220,3.3366502,124.65,124.63,0.05663533]
[1764621972516,3.3366502,124.65,124.57,181.3322]
[1764621972709,3.28332889,124.65,124.6,7.2235]
[1764621972906,3.28332889,124.65,124.57,68.94]
[1764621973112,6.071385,124.64,124.55,112.4111]
[1764621973414,0.05148056,124.61,124.58,0.05573789]
[1764621973616,0.05148056,124.61,124.58,0.05792647]
[1764621974219,0.05148056,124.61,124.58,7.28262647]
[1764621974419,0.05148056,124.61,124.58,0.05792647]
[1764621974610,0.05148056,124.61,124.58,112.44042647]
[1764621974816,0.05148056,124.61,124.59,7.2241]
[1764621980217,0.05148056,124.61,124.6,7.2236]
[1764621980820,0.05148056,124.61,124.58,7.28222647]
[1764621983921,0.05148056,124.61,124.58,0.05792647]
[1764621986627,0.05148056,124.61,124.6,7.2236]
[1764621987941,0.05148056,124.61,124.58,7.28212647]
[1764621990133,0.05148056,124.61,124.58,0.05792647]
[1764621991245,7.2238,124.6,124.58,0.05792647]
[1764621991936,0.05148056,124.61,124.58,0.05792647]
[1764621993037,6.09481355,124.61,124.58,0.05792647]
[1764621993234,9.37853353,124.61,124.58,0.05792647]
[1764621994144,7.2236,124.6,124.58,0.05792647]
[1764621994331,9.37853353,124.61,124.58,0.05792647]
[1764621994534,7.2242,124.59,124.58,0.05792647]
[1764621994743,7.2242,124.59,124.54,7.2269]
[1764621995343,13.26663299,124.61,124.54,7.2269]
[1764621995534,6.04333299,124.61,124.54,7.2269]
[1764621995736,0.05896512,124.59,124.54,7.2269]
[1764621998742,0.05896512,124.59,124.55,7.2264]
[1764621998947,0.06193805,124.58,124.52,112.4394]
[1764621999950,0.06193805,124.58,124.55,7.2262]
[1764622004254,0.06193805,124.58,124.54,7.227]
[1764622004758,0.06193805,124.58,124.51,181.4063]
[1764622005052,7.28713805,124.58,124.53,7.2276]
[1764622006251,7.28713805,124.58,124.51,76.1884]
[1764622006760,7.2258,124.57,124.47,68.98]
[1764622007055,0.05341024,124.54,124.47,68.98]
[1764622007248,0.05341024,124.54,124.5,7.2292]
[1764622008858,0.05341024,124.54,124.51,7.2284]
[1764622009857,0.05341024,124.54,124.52,7.2282]
[1764622015164,0.05341024,124.54,124.51,7.2288]
[1764622015464,0.05341024,124.54,124.47,68.98]
[1764622015762,8.2179881,124.54,124.5,7.2293]
[1764622015961,4.89062656,124.54,124.5,7.2293]
[1764622016158,8.2179881,124.54,124.5,7.2293]
[1764622016464,4.89062656,124.54,124.5,7.2293]
[1764622016763,8.21788538,124.54,124.5,7.2293]
[1764622017265,4.89062656,124.54,124.5,7.2293]
[1764622017466,8.21788538,124.54,124.5,7.2293]
[1764622017665,4.89062656,124.54,124.5,7.2293]
[1764622017960,8.21788538,124.54,124.5,7.2293]
[1764622018265,4.89062656,124.54,124.5,7.2293]
[1764622018464,8.21788538,124.54,124.5,7.2293]
[1764622020266,3.38066906,124.54,124.51,7.2286]
[1764622020468,0.05341024,124.54,124.51,7.2286]
[1764622020662,6.11138442,124.54,124.51,7.2286]
[1764622020865,0.05341024,124.54,124.51,7.2286]
[1764622021065,6.11138442,124.54,124.51,7.2286]
[1764622021266,0.05341024,124.54,124.5,112.4571]
[1764622021568,0.05341024,124.54,124.51,112.4476]
[1764622022160,0.05341024,124.54,124.53,7.2276]
[1764622022469,3.32629549,124.61,124.56,112.4001]
[1764622022766,76.45713051,124.63,124.57,112.3919]
[1764622022767,6.05647904,124.62,124.57,112.3919]
[1764622023467,0.05760575,124.61,124.6,7.2236]
[1764622024769,9.38228706,124.67,124.61,112.3546]
[1764622024970,6.05602122,124.67,124.61,112.3546]
[1764622025269,9.37911024,124.69,124.62,112.3427]
[1764622025466,9.37911024,124.7,124.62,112.3427]
[1764622025659,0.05850745,124.67,124.65,0.05518814]
[1764622025968,0.05897577,124.67,124.65,0.05518814]
[1764622027570,0.05897577,124.67,124.62,7.2222]
[1764622027771,4.83721632,124.65,124.56,112.3978]
[1764622028073,10.89006072,124.65,124.56,112.3978]
[1764622028268,4.83721632,124.65,124.56,112.3978]
[1764622028672,0.0542694,124.62,124.59,0.05280573]
[1764622030175,0.0542694,124.62,124.59,7.27650573]
[1764622032273,0.0542694,124.62,124.59,0.05280573]
[1764622035277,6.1071138,124.62,124.51,181.4021]
[1764622035477,93.37911024,124.62,124.54,7.2268]
[1764622035678,6.0528444,124.61,124.51,68.96]
[1764622036079,0.05425488,124.57,124.52,7.2278]
[1764622039682,0.05425488,124.57,124.53,7.2275]
[1764622041581,0.05425488,124.57,124.51,7.2286]
[1764622042785,7.27965488,124.57,124.52,7.2282]
[1764622042984,0.05399608,124.56,124.52,7.2282]
[1764622043882,0.05399608,124.56,124.53,7.2275]
[1764622050185,0.05399608,124.56,124.54,7.2269]
[1764622050380,0.05399608,124.56,124.53,112.4303]
[1764622051086,0.05399608,124.56,124.55,7.2265]
[1764622051987,0.05399608,124.56,124.54,7.227]
[1764622052186,0.05399608,124.56,124.52,112.4379]
[1764622054380,0.05399608,124.56,124.54,7.2268]
[1764622055189,0.05399608,124.56,124.52,7.2277]
[1764622055389,0.05399608,124.56,124.5,112.4573]
[1764622055582,3.09398234,124.52,124.43,24.11]
[1764622055778,3.09398234,124.52,124.44,68.98]
[1764622055984,0.05315054,124.49,124.44,68.98]
[1764622056179,0.05315054,124.49,124.46,112.492]
[1764622056594,0.05315054,124.49,124.47,7.2308]
[1764622058983,12.48671363,124.58,124.5,112.4571]
[1764622059187,3.09398234,124.58,124.5,112.4571]
[1764622059588,3.09398234,124.56,124.48,68.98]
[1764622060294,0.05418885,124.53,124.51,0.06167851]
[1764622063895,0.05418885,124.53,124.51,7.29037851]
[1764622064895,0.05418885,124.53,124.52,7.2282]
[1764622066894,87.09398234,124.57,124.53,7.2273]
[1764622067394,84.0,124.57,124.53,7.2273]
[1764622067590,3.09398234,124.59,124.54,7.2267]
[1764622067787,9.22622918,124.59,124.54,7.2267]
[1764622067992,0.05834524,124.58,124.55,0.05883361]
[1764622070398,6.19059208,124.58,124.55,0.05883361]
[1764622071195,0.05834524,124.58,124.55,0.05883361]
[1764622071495,0.05834524,124.58,124.55,7.28523361]
[1764622072302,3.38186343,124.58,124.55,7.28523361]
[1764622073297,6.14988486,124.57,124.55,7.28523361]
[1764622073497,0.05834524,124.58,124.55,7.28523361]
[1764622073797,6.14988486,124.57,124.55,7.28523361]
[1764622074001,7.28314524,124.58,124.55,0.05883361]
[1764622074190,9.48488003,124.57,124.55,0.05883361]
[1764622074391,3.33456695,124.57,124.55,0.05883361]
[1764622075093,3.33456695,124.57,124.55,7.28513361]
[1764622075396,0.05834524,124.58,124.55,7.28513361]
[1764622075798,6.153649,124.57,124.55,7.28513361]
[1764622075999,0.05834524,124.58,124.56,7.2258]
[1764622076194,6.1565599,124.57,124.56,7.2258]
[1764622076497,9.49482798,124.57,124.56,7.2258]
[1764622077198,0.05834524,124.58,124.57,7.2253]
[1764622077500,9.55757998,124.58,124.57,7.2253]
[1764622079005,6.21784047,124.58,124.57,7.2253]
[1764622079205,0.05834524,124.58,124.57,7.2253]
[1764622079598,9.50444544,124.61,124.6,7.2236]
[1764622080499,3.34164154,124.62,124.61,7.223]
[1764622080804,6.21429842,124.62,124.61,7.223]
[1764622081101,0.05214209,124.62,124.61,7.223]
[1764622085206,0.05214209,124.62,124.59,7.27547628]
[1764622090916,0.05214209,124.62,124.6,7.2235]
[1764622094704,0.05214209,124.62,124.59,0.05147628]
[1764622094914,0.05214209,124.62,124.59,115.51955862]
[1764622095312,0.05214209,124.62,124.61,7.223]
[1764622098815,0.05214209,124.62,124.59,7.27527628]
[1764622099024,0.05214209,124.62,124.59,0.05147628]
[1764622100028,3.14612443,124.62,124.59,7.27557628]
[1764622104132,0.05214209,124.62,124.59,0.05147628]
[1764622105335,0.05214209,124.62,124.61,7.223]
[1764622108037,97.6363876,124.68,124.61,7.223]
[1764622108342,97.6363876,124.68,124.63,7.2215]
[1764622108937,97.6363876,124.68,124.64,7.2212]
[1764622108938,90.4169876,124.68,124.64,7.2212]
[1764622109246,0.05098991,124.67,124.65,0.05181181]
[1764622112153,0.05098991,124.67,124.66,7.2201]
[1764622115546,0.05098991,124.67,124.65,0.05181181]
[1764622116250,0.05098991,124.67,124.66,7.2201]
[1764622124048,84.0,124.7,124.66,112.3123]
[1764622124460,84.0,124.73,124.67,112.3033]
[1764622124754,3.33403548,124.75,124.68,68.9]
[1764622125059,0.0591172,124.73,124.7,0.06041178]
[1764622125647,3.39195687,124.73,124.7,0.06041178]
[1764622125849,0.0591172,124.73,124.7,0.06041178]
[1764622126048,3.39195687,124.73,124.7,0.06041178]
[1764622126350,4.8864853,124.73,124.7,0.06041178]
[1764622126554,6.11289214,124.72,124.7,0.06041178]
[1764622127053,84.0,124.72,124.7,0.06041178]
[1764622127356,87.33177354,124.72,124.7,0.06041178]
[1764622128064,94.93634197,124.71,124.65,68.9]
[1764622128351,6.10887797,124.7,124.65,68.9]
[1764622128757,92.15914164,124.71,124.65,68.9]
[1764622128960,6.10895045,124.7,124.65,68.9]
[1764622129257,0.05278013,124.69,124.66,0.06064672]
[1764622129447,0.05278013,124.69,124.66,7.28064672]
[1764622129860,0.05278013,124.69,124.66,0.06064672]
[1764622130054,6.16173058,124.69,124.66,0.06064672]
[1764622131147,10.98909868,124.69,124.66,0.06064672]
[1764622131746,6.16173058,124.69,124.66,0.06064672]
[1764622131951,0.05278013,124.69,124.66,0.06064672]
[1764622134859,0.05278013,124.69,124.67,7.2193]
[1764622135059,0.05278013,124.69,124.66,112.37154672]
[1764622135460,0.05278013,124.69,124.68,7.2189]
[1764622142370,93.44443631,124.74,124.7,7.2176]
[1764622142555,6.11226048,124.73,124.7,7.2176]
[1764622142759,3.33217583,124.75,124.73,7.216]
[1764622142960,9.44324809,124.76,124.69,181.1661]
[1764622143159,3.33217583,124.76,124.69,181.1661]
[1764622143362,0.05794091,124.74,124.71,7.27759359]
[1764622146067,0.05794091,124.74,124.71,0.06099359]
[1764622146273,6.17074373,124.74,124.71,0.06099359]
[1764622146572,3.39011674,124.74,124.71,0.06099359]
[1764622147861,6.11485805,124.73,124.71,0.06099359]
[1764622148059,3.39011674,124.74,124.71,0.06099359]
[1764622148264,0.05794091,124.74,124.71,0.06099359]
[1764622148572,3.3856906,124.74,124.71,0.06099359]
[1764622149069,0.05794091,124.74,124.71,0.06099359]
[1764622149274,6.12035214,124.73,124.71,0.06099359]
[1764622149572,0.05794091,124.74,124.71,0.06099359]
[1764622149875,6.1201267,124.73,124.71,0.06099359]
[1764622150168,0.05794091,124.74,124.71,7.27819359]
[1764622150376,0.05794091,124.74,124.71,0.06099359]
[1764622152477,7.27344091,124.74,124.71,0.06099359]
[1764622153960,7.2166,124.72,124.71,0.06099359]
[1764622154363,7.2175,124.71,124.66,68.86]
[1764622155367,0.05712846,124.7,124.67,0.0591504]
[1764622167085,7.27502846,124.7,124.67,0.0591504]
[1764622167280,9.46875994,124.69,124.67,0.0591504]
[1764622167485,9.47018505,124.68,124.67,0.0591504]
[1764622170087,9.47018505,124.68,124.61,76.0827]
[1764622170288,6.13292615,124.67,124.61,76.0827]
[1764622170486,12.31134916,124.7,124.61,76.0827]
[1764622170487,3.08914871,124.68,124.61,76.0827]
[1764622170682,7.2195,124.67,124.61,76.0827]
[1764622170890,9.2225564,124.66,124.61,68.86]
[1764622171190,3.08914871,124.64,124.62,0.05400052]
[1764622171384,7.2218,124.63,124.62,0.05400052]
[1764622172583,7.2224,124.62,124.56,3.08914871]
[1764622172785,7.2224,124.62,124.55,68.86]
[1764622173083,3.08914871,124.64,124.55,68.86]
[1764622173084,10.31094871,124.64,124.56,7.2259]
[1764622173286,3.08914871,124.65,124.56,3.08914871]
[1764622173590,0.06100331,124.62,124.59,0.0526726]
[1764622187888,3.15015202,124.62,124.59,0.0526726]
[1764622188391,10.31324871,124.6,124.55,68.86]
[1764622188890,7.2247,124.59,124.55,68.86]
[1764622189094,196.3565,124.62,124.52,24.05397397]
[1764622189095,3.08914871,124.58,124.52,24.05397397]
[1764622189288,3.08914871,124.56,124.48,112.4684]
[1764622189490,3.08914871,124.56,124.48,181.3484]
[1764622189684,0.05967542,124.53,124.51,0.04843287]
[1764622200400,6.10371935,124.6,124.54,3.08914871]
[1764622200595,3.08914871,124.63,124.54,71.98914871]
[1764622200896,3.08914871,124.59,124.51,71.98914871]
[1764622201103,3.08914871,124.61,124.51,71.98914871]
[1764622201404,0.06075086,124.57,124.55,0.05432942]
[1764622203607,0.06075086,124.57,124.56,71.98914871]
[1764622204006,3.08914871,124.64,124.56,71.98914871]
[1764622204205,3.08914871,124.62,124.56,68.9]
[1764622204607,9.19490591,124.62,124.56,68.9]
[1764622205007,0.0591366,124.6,124.58,0.05268887]
[1764622212516,0.0591366,124.6,124.52,112.4336]
[1764622212517,3.08914871,124.59,124.51,3.08914871]
[1764622212819,10.31384871,124.59,124.51,3.08914871]
[1764622213012,10.31384871,124.59,124.51,10.31794871]
[1764622213217,3.08914871,124.59,124.51,10.31794871]
[1764622213412,7.2248,124.58,124.52,7.2282]
[1764622213617,3.08914871,124.59,124.52,7.2282]
[1764622213813,0.06160876,124.57,124.54,0.05934516]
[1764622219425,10.37635747,124.57,124.54,0.05934516]
[1764622219732,3.08914871,124.55,124.54,0.05934516]
[1764622220122,10.31564871,124.55,124.54,0.05934516]
[1764622224028,10.31564871,124.55,124.5,68.9]
[1764622225021,3.08914871,124.53,124.51,0.05682512]
[1764622225226,3.14060831,124.53,124.51,0.05682512]
[1764622229934,10.36860831,124.53,124.51,0.05682512]
[1764622230239,3.14060831,124.53,124.51,0.05682512]
[1764622230539,3.14060831,124.53,124.45,68.9]
[1764622230733,3.08914871,124.51,124.45,68.9]
[1764622231241,3.08914871,124.51,124.45,76.132]
[1764622231434,0.06157891,124.49,124.45,76.132]
[1764622231736,0.06157891,124.49,124.45,100.41402313]
[1764622232634,0.06157891,124.49,124.45,76.132]
[1764622236833,0.06157891,124.49,124.46,7.2316]
[1764622237040,0.06157891,124.49,124.45,68.9]
[1764622237636,0.06157891,124.49,124.45,76.132]
[1764622239145,0.06157891,124.49,124.46,7.2315]
[1764622239342,84.0,124.57,124.47,112.4833]
[1764622239839,84.0,124.57,124.5,7.2293]
[1764622240146,4.83913547,124.56,124.5,7.2293]
[1764622240344,0.06174785,124.54,124.52,0.05701417]
[1764622247940,4.90088332,124.54,124.46,7.2313]
[1764622248244,4.83913547,124.52,124.46,7.2313]
[1764622248952,0.05732343,124.5,124.46,7.2313]
[1764622251849,0.05732343,124.5,124.47,7.2311]
[1764622258859,0.05732343,124.5,124.48,7.2305]
[1764622259971,0.05732343,124.5,124.49,7.23]
[1764622261265,87.25068669,124.56,124.52,7.2281]
[1764622261465,3.25068669,124.57,124.49,112.4598]
[1764622261764,6.1148214,124.56,124.53,7.2271]
[1764622261964,3.25068669,124.58,124.53,7.2271]
[1764622262264,6.11431845,124.57,124.54,0.05468922]
[1764622262469,0.05586369,124.57,124.54,112.47198922]
[1764622263460,7.44953595,124.64,124.55,112.406]
[1764622263661,9.36904443,124.63,124.55,112.406]
[1764622263856,6.12072304,124.62,124.55,112.406]
[1764622264060,6.12072304,124.61,124.55,112.406]
[1764622264263,6.11730234,124.62,124.55,112.406]
[1764622264470,0.06147817,124.6,124.58,7.2243]
[1764622264770,0.05565663,124.6,124.58,0.05528644]
[1764622269375,11.00349407,124.6,124.58,0.05528644]
[1764622269569,4.8947921,124.6,124.55,76.1464]
[1764622269766,4.83913547,124.56,124.5,112.4528]
[1764622270074,4.83913547,124.56,124.49,112.4618]
[1764622270274,10.94783744,124.58,124.52,7.2281]
[1764622270471,0.05427617,124.56,124.54,0.05752453]
[1764622270779,0.05427617,124.56,124.54,7.28442453]
[1764622276175,0.05427617,124.56,124.54,0.05752453]
[1764622276782,7.28017617,124.56,124.54,0.05752453]
[1764622280983,7.2265,124.55,124.48,7.2302]
[1764622281188,13.32856447,124.55,124.48,7.2302]
[1764622281382,7.2272,124.54,124.48,7.2302]
[1764622281581,13.32926447,124.54,124.48,7.2302]
[1764622281876,0.055434,124.52,124.48,7.2302]
[1764622282785,0.055434,124.52,124.49,7.2294]
[1764622283376,0.055434,124.52,124.48,7.2305]
[1764622284385,0.055434,124.52,124.45,181.3996]
[1764622284386,0.055434,124.52,124.47,7.2311]
[1764622285385,68.9,124.51,124.39,112.5552]
[1764622285588,0.05083228,124.47,124.39,112.5552]
[1764622286987,0.05083228,124.47,124.43,7.2333]
[1764622288890,0.05083228,124.47,124.44,7.2328]
[1764622291796,0.05083228,124.47,124.39,112.5552]
[1764622291991,0.05083228,124.47,124.38,92.84841726]
[1764622291992,84.0,124.46,124.38,112.5635]
[1764622292187,0.05563034,124.43,124.37,112.5694]
[1764622292382,0.05563034,124.43,124.39,7.2353]
[1764622293195,0.05563034,124.43,124.36,181.5162]
[1764622294893,0.05563034,124.43,124.39,7.2356]
[1764622295500,0.05563034,124.43,124.4,7.2351]
[1764622295898,0.05563034,124.43,124.37,112.5719]
[1764622296200,0.05563034,124.43,124.39,7.2357]
[1764622296595,7.2341,124.42,124.36,7.237]
[1764622296803,0.05085325,124.4,124.32,112.6204]
[1764622297096,0.05405325,124.37,124.32,112.6204]
[1764622297302,0.05405325,124.37,124.33,7.239]
[1764622297688,0.05405325,124.37,124.34,7.2387]
[1764622298691,0.05405325,124.37,124.35,7.238]
[1764622299696,0.05405325,124.37,124.33,7.2387]
[1764622299898,0.05405325,124.37,124.31,181.5646]
[1764622301204,7.44953595,124.47,124.37,112.5719]
[1764622301407,6.02401152,124.47,124.37,112.5719]
[1764622301799,7.53822418,124.45,124.37,112.5719]
[1764622302203,0.05109014,124.42,124.4,0.05541695]
[1764622304305,0.05109014,124.42,124.4,7.29041695]
[1764622307605,6.02057843,124.48,124.4,0.05541695]
[1764622307807,7.2292,124.51,124.45,7.232]
[1764622308712,0.05344982,124.49,124.47,0.05469259]
[1764622311118,7.28344982,124.49,124.47,0.05469259]
[1764622311321,1.65344982,124.49,124.41,69.02]
[1764622311523,6.1001603,124.49,124.41,69.02]
[1764622311723,13.63838448,124.5,124.41,69.02]
[1764622312125,6.1001603,124.49,124.41,69.02]
[1764622312320,7.2306,124.48,124.44,0.05539169]
[1764622312526,0.05462018,124.46,124.44,0.05539169]
[1764622314727,7.28642018,124.46,124.44,0.05539169]
[1764622315222,84.0,124.45,124.44,0.05539169]
[1764622315529,7.2329,124.44,124.38,7.2359]
[1764622315917,7.2335,124.43,124.37,69.0]
[1764622316321,13.36863449,124.43,124.37,69.0]
[1764622316531,0.0571986,124.41,124.35,7.2377]
[1764622316725,0.0571986,124.41,124.33,184.72824816]
[1764622316922,0.05120642,124.38,124.33,184.72824816]
[1764622318119,0.05120642,124.38,124.37,10.33614816]
[1764622318324,6.13513449,124.44,124.37,69.02]
[1764622318517,6.13513449,124.46,124.37,69.02]
[1764622318720,6.13513449,124.45,124.37,69.02]
[1764622318927,6.13513449,124.44,124.37,69.02]
[1764622319120,6.13513449,124.46,124.37,69.02]
[1764622319328,0.06129444,124.43,124.4,0.05120642]
[1764622320231,0.06129444,124.43,124.4,7.28640642]
[1764622321935,0.06129444,124.43,124.41,7.2344]
[1764622322434,0.06129444,124.43,124.4,0.05120642]
[1764622324135,6.16542322,124.42,124.4,0.05120642]
[1764622324434,0.06129444,124.43,124.4,0.05120642]
[1764622324633,6.16542126,124.42,124.4,0.05120642]
[1764622324836,0.06129444,124.43,124.4,0.05120642]
[1764622325034,6.16541364,124.42,124.4,0.05120642]
[1764622325224,0.06129444,124.43,124.4,0.05120642]
[1764622325427,6.1698972,124.42,124.4,0.05120642]
[1764622325637,0.06129444,124.43,124.4,0.05120642]
[1764622325936,6.1698972,124.42,124.4,0.05120642]
[1764622326139,84.06129444,124.43,124.4,0.05120642]
[1764622326337,6.17333631,124.42,124.4,0.05120642]
[1764622326534,84.06129444,124.43,124.4,0.05120642]
[1764622326739,6.17333389,124.42,124.4,0.05120642]
[1764622327036,84.06129444,124.43,124.4,0.05120642]
[1764622327236,6.17369506,124.42,124.4,0.05120642]
[1764622327437,6.17369506,124.41,124.4,0.05120642]
[1764622328235,6.18017953,124.41,124.4,0.05120642]
[1764622329040,84.06129444,124.43,124.4,0.05120642]
[1764622329240,6.17981536,124.42,124.4,0.05120642]
[1764622329438,6.17981536,124.41,124.4,0.05120642]
[1764622330141,87.29462924,124.43,124.4,0.05120642]
[1764622330343,6.18566111,124.42,124.4,0.05120642]
[1764622330538,6.18566111,124.41,124.4,0.05120642]
[1764622330739,90.18566111,124.41,124.37,69.02]
[1764622330932,6.18566111,124.4,124.33,69.02]
[1764622331133,6.18566111,124.39,124.33,69.02]
[1764622331333,84.0,124.41,124.33,69.02]
[1764622331534,6.18516716,124.4,124.33,69.02]
[1764622331746,0.05356216,124.38,124.36,7.2374]
[1764622332245,0.05356216,124.38,124.34,7.2386]
[1764622332845,0.05356216,124.38,124.35,7.2379]
[1764622333048,0.05356216,124.38,124.33,69.02]
[1764622333341,9.41561106,124.37,124.26,112.6683]
[1764622333543,0.05586962,124.33,124.27,69.04]
[1764622333942,0.05586962,124.33,124.28,112.6559]
[1764622334137,0.05586962,124.33,124.27,181.7031]
[1764622334448,0.05586962,124.33,124.27,205.59306635]
[1764622335442,0.05586962,124.33,124.3,7.2409]
[1764622335841,0.05586962,124.33,124.29,7.2414]
[1764622336454,0.05586962,124.33,124.27,92.92996635]
[1764622336638,0.05586962,124.33,124.27,69.04]
[1764622336952,0.05586962,124.33,124.29,7.2415]
[1764622338040,0.05586962,124.33,124.27,69.04]
[1764622338947,7.29516962,124.33,124.27,69.04]
[1764622339444,13.45565429,124.33,124.27,69.04]
[1764622339640,0.05586962,124.33,124.21,112.7122]
[1764622339844,0.05894871,124.28,124.22,69.06]
[1764622340750,0.05894871,124.28,124.25,7.2436]